bitfinex/quotes_BTCUSD_20250813
["timestamp","ask_amount","ask_price","bid_price","bid_amount"]
[1755065884752,0.001,119080.0,119070.0,0.2894396]
[1755065884979,0.001,119080.0,119070.0,0.28734]
[1755065886314,0.001,119080.0,119070.0,0.15622]
[1755065886532,0.001,119080.0,119070.0,0.2894396]
[1755065886748,0.001,119080.0,119070.0,0.28734]
[1755065887978,0.001,119080.0,119070.0,0.312518]
[1755065888177,0.001,119080.0,119070.0,0.316518]
[1755065888759,1.82310596,119110.0,119090.0,0.35]
[1755065888967,1.9140594,119110.0,119100.0,0.33789]
[1755065889196,1.13355894,119110.0,119100.0,0.33789]
[1755065889407,1.9140594,119110.0,119100.0,0.33789]
[1755065889603,1.93874554,119110.0,119100.0,0.33789]
[1755065890212,1.94274554,119110.0,119100.0,0.33889]
[1755065890418,1.94374554,119110.0,119100.0,0.33889]
[1755065891267,1.16324508,119110.0,119100.0,0.33889]
[1755065891508,1.94374554,119110.0,119100.0,0.33889]
[1755065892046,1.16324508,119110.0,119100.0,0.33889]
[1755065892467,1.94374554,119110.0,119100.0,0.33889]
[1755065893415,1.17879047,119110.0,119100.0,0.33889]
[1755065893641,1.95929093,119110.0,119100.0,0.33889]
[1755065894733,1.17879047,119110.0,119100.0,0.33889]
[1755065894954,1.95929093,119110.0,119100.0,0.33889]
[1755065895674,1.95929522,119110.0,119100.0,0.33889]
[1755065896768,1.17879476,119110.0,119100.0,0.33889]
[1755065896991,1.06315518,119110.0,119100.0,0.33889]
[1755065897204,1.0476055,119110.0,119100.0,0.33889]
[1755065897427,1.06315852,119110.0,119100.0,0.33889]
[1755065898072,1.06216366,119110.0,119100.0,0.33889]
[1755065898717,1.0581688,119110.0,119100.0,0.33889]
[1755065899612,1.0601688,119110.0,119100.0,0.33989]
[1755065903639,1.06796157,119110.0,119100.0,0.33989]
[1755065904108,1.0601688,119110.0,119100.0,0.33989]
[1755065904325,1.06796485,119110.0,119100.0,0.33989]
[1755065904787,1.05240155,119110.0,119100.0,0.33989]
[1755065905017,1.06020221,119110.0,119100.0,0.33989]
[1755065906441,1.06800733,119110.0,119100.0,0.33989]
[1755065907903,1.06802534,119110.0,119100.0,0.33989]
[1755065910789,1.06021873,119110.0,119100.0,0.33989]
[1755065911047,1.06022501,119110.0,119100.0,0.33989]
[1755065914006,1.0446055,119110.0,119100.0,0.33989]
[1755065914220,1.06023268,119110.0,119100.0,0.33989]
[1755065914951,1.06023564,119110.0,119100.0,0.33989]
[1755065921098,1.06023564,119110.0,119100.0,0.20853]
[1755065921333,1.06023564,119110.0,119100.0,0.33997]
[1755065921551,1.8407361,119110.0,119100.0,0.33476]
[1755065921981,1.8639161,119110.0,119100.0,0.3348]
[1755065922191,1.94663935,119110.0,119100.0,0.3348]
[1755065922447,1.94663935,119110.0,119100.0,0.20332]
[1755065922678,1.94663935,119110.0,119100.0,0.3348]
[1755065923104,1.16613889,119110.0,119100.0,0.3348]
[1755065923316,1.94663935,119110.0,119100.0,0.3348]
[1755065923523,1.9466531,119110.0,119100.0,0.33803]
[1755065924187,1.94665287,119110.0,119100.0,0.33803]
[1755065927250,1.16615241,119110.0,119100.0,0.33803]
[1755065927464,1.94665287,119110.0,119100.0,0.33803]
[1755065927684,1.16615241,119110.0,119100.0,0.33803]
[1755065929449,1.06024916,119110.0,119100.0,0.34008]
[1755065931256,1.0446055,119110.0,119100.0,0.34008]
[1755065933190,1.0446055,119110.0,119100.0,0.44472]
[1755065938340,1.0446055,119110.0,119100.0,0.53144325]
[1755065938579,1.0446055,119110.0,119100.0,0.63144325]
[1755065939302,1.0426055,119110.0,119100.0,0.62944325]
[1755065939504,1.0426055,119110.0,119100.0,0.63144325]
[1755065939947,1.0426055,119110.0,119100.0,0.62944325]
[1755065940383,1.0426055,119110.0,119100.0,0.63244325]
[1755065941231,1.0436055,119110.0,119100.0,0.63344325]
[1755065942558,1.0436055,119110.0,119100.0,0.52880325]
[1755065945640,1.0436055,119110.0,119100.0,0.63344325]
[1755065945845,1.0436055,119110.0,119100.0,0.49559953]
[1755065946092,1.0436055,119110.0,119100.0,0.49775953]
[1755065946943,1.0436055,119110.0,119100.0,0.62887953]
[1755065947761,1.0436055,119110.0,119100.0,0.63207953]
[1755065951083,1.0488655,119110.0,119100.0,0.43939628]
[1755065951953,1.0488655,119110.0,119100.0,0.4364]
[1755065952385,1.0736155,119110.0,119100.0,0.4364]
[1755065952600,1.0736155,119110.0,119100.0,0.43939628]
[1755065952804,1.0736155,119110.0,119100.0,0.43931628]
[1755065953674,1.0703955,119110.0,119100.0,0.43931628]
[1755065955537,1.0736155,119110.0,119100.0,0.54395628]
[1755065958617,1.0703955,119110.0,119100.0,0.54931628]
[1755065960395,1.0436055,119110.0,119100.0,0.54931628]
[1755065962637,1.0436055,119110.0,119100.0,0.83203953]
[1755065962850,1.0436055,119110.0,119100.0,0.72739953]
[1755065965553,1.0436055,119110.0,119100.0,0.83203953]
[1755065968882,1.0436055,119110.0,119100.0,1.16787953]
[1755065970911,1.0436055,119110.0,119100.0,1.06323953]
[1755065973300,1.0436055,119110.0,119100.0,0.86199953]
[1755065975632,1.0436055,119110.0,119100.0,1.16783953]
[1755065978325,1.0457655,119110.0,119100.0,1.16783953]
[1755065983006,1.0457655,119110.0,119100.0,1.06319953]
[1755065984195,1.0457655,119110.0,119100.0,1.08836853]
[1755065984987,1.85317596,119110.0,119100.0,0.99928528]
[1755065985197,1.0726755,119110.0,119100.0,0.99928528]
[1755065985580,1.0726755,119110.0,119100.0,1.07875628]
[1755065986451,1.0726755,119110.0,119100.0,1.07550236]
[1755065987117,1.0696355,119110.0,119100.0,1.07550236]
[1755065987819,1.0696355,119110.0,119100.0,0.94542236]
[1755065988112,1.0696355,119110.0,119100.0,1.07550236]
[1755065988299,1.05652627,119110.0,119100.0,1.07550236]
[1755065989121,1.05652627,119110.0,119100.0,1.07765236]
[1755065989260,1.05652627,119110.0,119100.0,1.08070236]
[1755065989455,1.05652627,119110.0,119100.0,1.08066236]
[1755065990005,1.03049627,119110.0,119100.0,1.08066236]
[1755065990157,1.03049627,119110.0,119100.0,1.16338561]
[1755065990799,1.03049627,119110.0,119100.0,1.05874561]
[1755065991209,1.03049627,119110.0,119100.0,1.08391461]
[1755065991433,1.03265627,119110.0,119100.0,1.08391461]
[1755065991810,1.03265627,119110.0,119100.0,1.08086461]
[1755065992709,1.03265627,119110.0,119100.0,1.08391461]
[1755065993290,1.03049627,119110.0,119100.0,1.08391461]
[1755065994757,1.03049627,119110.0,119100.0,0.88271461]
[1755065995520,1.03049627,119110.0,119100.0,1.18855461]
[1755065996132,1.03265627,119110.0,119100.0,1.18855461]
[1755065998727,1.03049627,119110.0,119100.0,1.18855461]
[1755066004232,1.03049627,119110.0,119100.0,1.08391461]
[1755066005624,1.03049627,119110.0,119100.0,1.18855461]
[1755066010185,1.03049627,119110.0,119100.0,1.08391461]
[1755066010841,1.03049627,119110.0,119100.0,1.08271461]
[1755066011670,1.03049627,119110.0,119100.0,0.87897225]
[1755066012329,1.03049627,119110.0,119100.0,0.86328225]
[1755066012576,1.03049627,119110.0,119100.0,0.87897225]
[1755066015677,1.03049627,119110.0,119100.0,1.18481225]
[1755066019362,1.01738768,119110.0,119100.0,1.18481225]
[1755066019573,1.01738768,119110.0,119100.0,1.09762127]
[1755066021447,1.01738768,119110.0,119100.0,0.89642127]
[1755066022814,1.01638768,119110.0,119100.0,0.89842127]
[1755066023024,1.01638768,119110.0,119100.0,0.90142127]
[1755066023233,1.01738768,119110.0,119100.0,0.90142127]
[1755066025562,1.01738768,119110.0,119100.0,1.20722127]
[1755066025816,1.01738768,119110.0,119100.0,1.40722127]
[1755066029478,1.01738768,119110.0,119100.0,1.30262127]
[1755066030919,1.01738768,119110.0,119100.0,1.29635397]
[1755066031331,1.01738768,119110.0,119100.0,1.24515397]
[1755066031876,1.01738768,119110.0,119100.0,1.26193397]
[1755066032103,1.01738768,119110.0,119100.0,1.24515397]
[1755066035615,1.01738768,119110.0,119100.0,1.55095397]
[1755066036282,1.01738768,119110.0,119100.0,1.44635397]
[1755066037731,1.01738768,119110.0,119100.0,1.73979077]
[1755066037931,1.01449388,119110.0,119100.0,1.53859077]
[1755066045622,1.01449388,119110.0,119100.0,1.84439077]
[1755066047994,1.00138741,119110.0,119100.0,1.84439077]
[1755066048402,1.00138741,119110.0,119100.0,1.73979077]
[1755066050457,1.00138741,119110.0,119100.0,1.53859077]
[1755066053921,1.00038741,119110.0,119100.0,1.53559077]
[1755066054246,1.00138741,119110.0,119100.0,1.54059077]
[1755066055445,1.00138741,119110.0,119100.0,1.54459077]
[1755066055654,1.00138741,119110.0,119100.0,1.85035077]
[1755066057025,1.00138741,119110.0,119100.0,1.86713077]
[1755066060462,1.00138741,119110.0,119100.0,1.76253077]
[1755066061668,1.00343741,119110.0,119100.0,1.76253077]
[1755066062079,1.00343741,119110.0,119100.0,1.75733077]
[1755066062488,1.00624741,119110.0,119100.0,1.53895077]
[1755066065513,1.00343741,119110.0,119100.0,1.53895077]
[1755066065710,1.00343741,119110.0,119100.0,1.84471077]
[1755066065923,1.00343741,119110.0,119100.0,1.51511077]
[1755066066132,1.03112741,119110.0,119100.0,1.64471077]
[1755066068911,1.01802083,119110.0,119100.0,1.64471077]
[1755066069960,1.01802083,119110.0,119100.0,1.54011077]
[1755066070144,1.01521083,119110.0,119100.0,1.54011077]
[1755066074684,0.98828083,119110.0,119100.0,1.34416077]
[1755066075637,0.98828083,119110.0,119100.0,1.64992077]
[1755066076886,0.98828083,119110.0,119100.0,1.66670077]
[1755066077719,0.98901083,119110.0,119100.0,1.66670077]
[1755066080494,0.98901083,119110.0,119100.0,1.64992077]
[1755066080697,0.98901083,119110.0,119100.0,1.64678077]
[1755066082270,0.98901083,119110.0,119100.0,1.41258077]
[1755066082479,0.98901083,119110.0,119100.0,1.54214077]
[1755066084391,0.98901083,119110.0,119100.0,1.34098077]
[1755066085440,0.98901083,119110.0,119100.0,1.33891077]
[1755066085723,0.98901083,119110.0,119100.0,1.64467077]
[1755066086394,0.98901083,119110.0,119100.0,1.64674077]
[1755066086609,0.99204083,119110.0,119100.0,1.64467077]
[1755066087025,1.01692083,119110.0,119100.0,1.51511077]
[1755066087241,1.01692083,119110.0,119100.0,1.64463077]
[1755066087876,1.01692083,119110.0,119100.0,1.64063077]
[1755066088081,1.01592083,119110.0,119100.0,1.63563077]
[1755066088352,1.01592083,119110.0,119100.0,1.63863077]
[1755066088483,1.01692083,119110.0,119100.0,1.63863077]
[1755066091008,1.01692083,119110.0,119100.0,1.53403077]
[1755066092314,1.01389083,119110.0,119100.0,1.53403077]
[1755066092972,1.01389083,119110.0,119100.0,1.33287077]
[1755066095596,1.01389083,119110.0,119100.0,1.63863077]
[1755066096222,1.01389083,119110.0,119100.0,1.64392077]
[1755066098946,0.97517442,119110.0,119100.0,1.64392077]
[1755066101233,0.97517442,119110.0,119100.0,1.53932077]
[1755066104448,0.98023442,119110.0,119100.0,1.18283077]
[1755066104673,1.00412442,119110.0,119100.0,1.18283077]
[1755066105587,1.00412442,119110.0,119100.0,1.48859077]
[1755066107172,1.00412442,119110.0,119100.0,1.28859077]
[1755066107390,1.00412442,119110.0,119100.0,1.47114175]
[1755066108482,1.00110442,119110.0,119100.0,1.47114175]
[1755066109557,1.00110442,119110.0,119100.0,1.36650175]
[1755066110828,0.97517442,119110.0,119100.0,1.37179175]
[1755066111764,0.97517442,119110.0,119100.0,1.17063175]
[1755066114099,0.97592442,119110.0,119100.0,1.17063175]
[1755066114308,0.97592442,119110.0,119100.0,1.16750175]
[1755066114781,0.97592442,119110.0,119100.0,1.16534175]
[1755066115729,0.97592442,119110.0,119100.0,1.47114175]
[1755066116621,0.97592442,119110.0,119100.0,1.47643175]
[1755066117079,0.97517442,119110.0,119100.0,1.47643175]
[1755066117679,0.97517442,119110.0,119100.0,1.49388077]
[1755066119586,0.97517442,119110.0,119100.0,1.38928077]
[1755066119777,0.97517442,119110.0,119100.0,1.37185514]
[1755066122907,0.97517442,119110.0,119100.0,1.17065514]
[1755066125632,0.97517442,119110.0,119100.0,1.47645514]
[1755066129128,0.96206839,119110.0,119100.0,1.47645514]
[1755066130183,0.96206839,119110.0,119100.0,1.17065514]
[1755066130583,0.96206839,119110.0,119100.0,1.37065514]
[1755066132367,0.96206839,119110.0,119100.0,1.52065514]
[1755066134381,0.96168839,119110.0,119100.0,1.52065514]
[1755066135529,0.96168839,119110.0,119100.0,1.82641514]
[1755066137668,0.96168839,119110.0,119100.0,1.82341514]
[1755066137893,0.96068839,119110.0,119100.0,1.82341514]
[1755066138102,0.96168839,119110.0,119100.0,1.82941514]
[1755066138734,0.96168839,119110.0,119100.0,1.82741514]
[1755066139144,0.96168839,119110.0,119100.0,1.83041514]
[1755066139783,0.90417156,119110.0,119100.0,1.72581514]
[1755066142149,0.001,119110.0,119100.0,1.52465514]
[1755066145653,0.001,119110.0,119100.0,1.83041514]
[1755066150737,0.001,119110.0,119100.0,1.81861812]
[1755066151494,0.001,119110.0,119100.0,1.73872898]
[1755066155435,0.001,119110.0,119100.0,1.53756898]
[1755066155641,0.001,119110.0,119100.0,1.84332898]
[1755066162698,0.00608,119110.0,119100.0,1.5118391]
[1755066162907,0.73287231,119110.0,119100.0,0.9684023]
[1755066163110,0.70802231,119110.0,119100.0,1.2684233]
[1755066163514,0.70802231,119110.0,119100.0,0.8684233]
[1755066163676,0.70802231,119110.0,119100.0,0.8654233]
[1755066163875,0.70802231,119110.0,119100.0,0.8594233]
[1755066163876,0.00508,119110.0,119100.0,0.8594233]
[1755066164437,0.00708,119110.0,119100.0,0.8604233]
[1755066165562,0.00708,119110.0,119100.0,0.9650233]
[1755066172431,0.00708,119110.0,119100.0,0.8357833]
[1755066172665,0.78707503,119110.0,119100.0,0.9650233]
[1755066172893,0.78707503,119110.0,119100.0,0.88230005]
[1755066173823,0.00708,119110.0,119100.0,0.88230005]
[1755066175129,0.78707503,119110.0,119100.0,0.73230005]
[1755066175567,0.78707503,119110.0,119100.0,0.93230005]
[1755066176196,0.00708,119110.0,119100.0,0.93230005]
[1755066177800,0.78707503,119110.0,119100.0,0.93230005]
[1755066178534,0.00708,119110.0,119100.0,0.93230005]
[1755066180138,0.78707503,119110.0,119100.0,0.93230005]
[1755066180385,0.00708,119110.0,119100.0,0.93230005]
[1755066181341,0.78707503,119110.0,119100.0,0.93230005]
[1755066181824,0.78707503,119110.0,119100.0,0.73230005]
[1755066182283,0.78707503,119110.0,119100.0,0.63230005]
[1755066183357,0.00708,119110.0,119100.0,0.63130005]
[1755066183641,0.79107503,119110.0,119100.0,0.63230005]
[1755066183844,0.01108,119110.0,119100.0,0.63230005]
[1755066184051,0.79107503,119110.0,119100.0,0.63230005]
[1755066184279,0.01108,119110.0,119100.0,0.63230005]
[1755066184484,0.79107503,119110.0,119100.0,0.63230005]
[1755066187559,0.01108,119110.0,119100.0,0.63230005]
[1755066187780,0.79107503,119110.0,119100.0,0.63230005]
[1755066190380,0.80669697,119110.0,119100.0,0.63230005]
[1755066191491,0.02671689,119110.0,119100.0,0.63230005]
[1755066191770,0.80671192,119110.0,119100.0,0.63230005]
[1755066191985,0.80671214,119110.0,119100.0,0.63230005]
[1755066193468,0.02671711,119110.0,119100.0,0.63230005]
[1755066193668,0.80671214,119110.0,119100.0,0.63230005]
[1755066194673,0.02671711,119110.0,119100.0,0.63230005]
[1755066194867,0.80671214,119110.0,119100.0,0.63230005]
[1755066195297,0.80671214,119110.0,119100.0,0.50306005]
[1755066195507,0.88943539,119110.0,119100.0,0.50306005]
[1755066195758,0.88943539,119110.0,119100.0,0.3738431]
[1755066195759,1.96175467,119110.0,119100.0,0.3738431]
[1755066196083,2.0348547,119110.0,119100.0,0.5039231]
[1755066196294,0.00839842,119070.0,119040.0,0.27464]
[1755066196469,0.78201503,119050.0,119040.0,0.37464]
[1755066196691,0.79765214,119050.0,119040.0,0.47588]
[1755066196957,0.79838214,119050.0,119040.0,0.47588]
[1755066197149,0.01638711,119050.0,119040.0,0.47588]
[1755066197363,0.79565214,119050.0,119040.0,0.47588]
[1755066197570,0.79565214,119050.0,119040.0,0.60632]
[1755066197774,0.80065214,119050.0,119040.0,0.60732]
[1755066198313,0.02265711,119050.0,119040.0,0.60732]
[1755066198520,0.80265214,119050.0,119040.0,0.60732]
[1755066198723,0.02265711,119050.0,119040.0,0.60732]
[1755066198938,0.03087249,119050.0,119040.0,0.61234]
[1755066199145,0.02263711,119050.0,119040.0,0.61234]
[1755066200234,0.03110055,119050.0,119040.0,0.61234]
[1755066200549,0.01546344,119050.0,119040.0,0.61234]
[1755066200730,0.03105339,119050.0,119040.0,0.61234]
[1755066201309,0.05618236,119050.0,119040.0,0.61234]
[1755066201712,0.04771892,119050.0,119040.0,0.61234]
[1755066203459,0.02258995,119050.0,119040.0,0.61234]
[1755066203599,0.02257994,119050.0,119040.0,0.63708]
[1755066203802,0.02257994,119050.0,119040.0,0.83708]
[1755066205242,0.80257497,119050.0,119040.0,0.81234]
[1755066205469,0.80257497,119050.0,119040.0,0.60732]
[1755066205912,0.02257994,119050.0,119040.0,0.60732]
[1755066206132,0.02257994,119050.0,119040.0,0.61029]
[1755066206352,0.02257994,119050.0,119040.0,0.61234]
[1755066209657,0.007,119050.0,119040.0,0.61234]
[1755066209781,0.02257324,119050.0,119040.0,0.61234]
[1755066210616,0.80256827,119050.0,119040.0,0.60752]
[1755066210861,0.80256827,119050.0,119040.0,0.61279]
[1755066211072,0.02257324,119050.0,119040.0,0.61279]
[1755066218899,0.007,119050.0,119040.0,0.61279]
[1755066219102,0.0225887,119050.0,119040.0,0.61279]
[1755066219618,0.02259378,119050.0,119040.0,0.61279]
[1755066220094,0.02259378,119050.0,119040.0,0.48215]
[1755066220302,0.02457378,119050.0,119040.0,0.6086]
[1755066220533,0.80638881,119050.0,119040.0,0.6086]
[1755066220740,0.80456881,119050.0,119040.0,0.4586]
[1755066221065,0.80638881,119050.0,119040.0,0.4586]
[1755066221938,0.80456881,119050.0,119040.0,0.4586]
[1755066222355,0.02457378,119050.0,119040.0,0.4586]
[1755066222558,0.80456881,119050.0,119040.0,0.46184]
[1755066223528,0.80456881,119050.0,119040.0,0.4586]
[1755066224172,0.80638881,119050.0,119040.0,0.32688]
[1755066224372,0.80638881,119050.0,119040.0,0.4588]
[1755066224799,0.02639378,119050.0,119040.0,0.4588]
[1755066224961,0.79079503,119050.0,119040.0,0.4588]
[1755066225167,0.8064316,119050.0,119040.0,0.4588]
[1755066225530,0.81426194,119050.0,119040.0,0.4588]
[1755066225950,0.81426194,119050.0,119040.0,0.35416]
[1755066227378,0.8064316,119050.0,119040.0,0.35416]
[1755066227958,0.8046116,119050.0,119040.0,0.35416]
[1755066228159,0.80463102,119050.0,119040.0,0.35416]
[1755066228734,0.02463599,119050.0,119040.0,0.35416]
[1755066228942,0.80463102,119050.0,119040.0,0.35416]
[1755066229109,0.02463599,119050.0,119040.0,0.35416]
[1755066229324,0.80463102,119050.0,119040.0,0.35416]
[1755066230781,0.02463599,119050.0,119040.0,0.35416]
[1755066230992,0.80463102,119050.0,119040.0,0.35416]
[1755066231334,0.80264914,119050.0,119040.0,0.35943]
[1755066233514,0.02265411,119050.0,119040.0,0.35943]
[1755066233741,0.02265411,119050.0,119040.0,0.50943]
[1755066233945,0.02265411,119050.0,119040.0,0.73408]
[1755066237333,0.007,119050.0,119040.0,0.73408]
[1755066237540,0.02265704,119050.0,119040.0,0.73408]
[1755066242179,0.007,119050.0,119040.0,0.81680325]
[1755066242353,0.007,119050.0,119040.0,0.91680325]
[1755066243168,0.002,119050.0,119040.0,0.91580325]
[1755066243405,0.04894791,119080.0,119070.0,0.2]
[1755066243619,0.04894791,119080.0,119070.0,0.33371]
[1755066243840,0.02407941,119080.0,119070.0,0.33675]
[1755066244419,0.54798156,119050.0,119040.0,0.52861325]
[1755066244650,0.54698156,119050.0,119040.0,0.78076325]
[1755066245253,0.54698156,119050.0,119040.0,0.98076325]
[1755066245660,0.54698156,119050.0,119040.0,1.11220325]
[1755066246039,0.54698156,119050.0,119040.0,1.11320325]
[1755066246257,0.54998156,119050.0,119040.0,1.11320325]
[1755066246468,0.54998156,119050.0,119040.0,1.11624325]
[1755066246907,0.55098156,119050.0,119040.0,1.11624325]
[1755066249308,0.55098156,119050.0,119040.0,1.08855325]
[1755066249524,0.55098156,119050.0,119040.0,1.09159325]
[1755066250392,0.55302156,119050.0,119040.0,1.08855325]
[1755066250603,0.55606156,119050.0,119040.0,0.60368]
[1755066250852,0.55606156,119050.0,119040.0,0.47224]
[1755066251058,0.55606156,119050.0,119040.0,0.45464]
[1755066251485,1.33605659,119050.0,119040.0,0.45464]
[1755066252662,0.55606156,119050.0,119040.0,0.45464]
[1755066254598,0.55606156,119050.0,119040.0,0.45679]
[1755066255028,0.55302156,119050.0,119040.0,0.45679]
[1755066256087,0.55606156,119050.0,119040.0,0.45679]
[1755066256333,0.55606156,119050.0,119040.0,0.45464]
[1755066260620,1.41854102,119050.0,119040.0,0.45464]
[1755066260821,1.33605659,119050.0,119040.0,0.35444]
[1755066261472,0.55606156,119050.0,119040.0,0.35444]
[1755066261610,1.33605659,119050.0,119040.0,0.35444]
[1755066262234,1.33305659,119050.0,119040.0,0.35344]
[1755066262431,0.55206156,119050.0,119040.0,0.35344]
[1755066262632,1.41977984,119050.0,119040.0,0.35444]
[1755066263719,1.42277984,119050.0,119040.0,0.35444]
[1755066264201,0.64278481,119050.0,119040.0,0.35444]
[1755066264660,1.42390163,119050.0,119040.0,0.35444]
[1755066265519,0.64278481,119050.0,119040.0,0.35444]
[1755066265720,1.42390163,119050.0,119040.0,0.35444]
[1755066270668,0.64278481,119050.0,119040.0,0.35444]
[1755066270891,1.42390163,119050.0,119040.0,0.35444]
[1755066274349,0.64278481,119050.0,119040.0,0.35444]
[1755066274559,1.42390163,119050.0,119040.0,0.22224]
[1755066274762,1.42390163,119050.0,119040.0,0.35592]
[1755066275639,0.66778039,119050.0,119040.0,0.35592]
[1755066275866,1.44889721,119050.0,119040.0,0.35592]
[1755066277304,0.57997714,119050.0,119040.0,0.36115]
[1755066277833,0.57997714,119050.0,119040.0,1.16604682]
[1755066278929,0.55498156,119050.0,119040.0,1.16604682]
[1755066279310,0.55498156,119050.0,119040.0,1.36604682]
[1755066282061,0.55198156,119050.0,119040.0,1.36604682]
[1755066282470,0.54798156,119050.0,119040.0,1.36504682]
[1755066282744,0.55098156,119050.0,119040.0,1.36604682]
[1755066285864,0.55098156,119050.0,119040.0,0.58493]
[1755066286007,0.55098156,119050.0,119040.0,1.36604682]
[1755066286800,0.55098156,119050.0,119040.0,0.58493]
[1755066287224,0.55098156,119050.0,119040.0,1.36604682]
[1755066287669,0.55098156,119050.0,119040.0,0.58493]
[1755066287901,0.55098156,119050.0,119040.0,1.36604682]
[1755066288367,0.55313156,119050.0,119040.0,1.36289682]
[1755066288809,0.55098156,119050.0,119040.0,1.36604682]
[1755066291845,0.55098156,119050.0,119040.0,1.3743382]
[1755066292070,0.55098156,119050.0,119040.0,1.60706145]
[1755066292825,0.55098156,119050.0,119040.0,0.82594463]
[1755066294670,0.55098156,119050.0,119040.0,0.81765325]
[1755066300560,0.004,119050.0,119040.0,0.81765325]
[1755066305519,0.004,119050.0,119040.0,0.92233325]
[1755066308368,0.004,119050.0,119040.0,0.81765325]
[1755066309650,0.004,119050.0,119040.0,0.61641325]
[1755066310312,0.004,119050.0,119040.0,0.64159225]
[1755066310773,0.004,119050.0,119040.0,0.50791225]
[1755066310985,0.004,119050.0,119040.0,0.64071225]
[1755066314793,0.004,119050.0,119040.0,0.97672225]
[1755066315533,0.004,119050.0,119040.0,1.08140225]
[1755066315763,0.004,119050.0,119040.0,1.28272225]
[1755066319007,0.004,119050.0,119040.0,1.17804225]
[1755066323084,0.004,119050.0,119040.0,0.97672225]
[1755066325482,0.004,119050.0,119040.0,1.28272225]
[1755066327706,0.004,119050.0,119040.0,1.19549127]
[1755066327907,0.004,119050.0,119040.0,1.29549127]
[1755066328681,0.06979771,119080.0,119070.0,0.15]
[1755066328904,0.07191771,119080.0,119070.0,0.48212]
[1755066330463,0.07291771,119080.0,119070.0,0.48212]
[1755066331076,0.07691771,119080.0,119070.0,0.48312]
[1755066331299,0.01007,119080.0,119070.0,0.48312]
[1755066335567,0.01007,119080.0,119070.0,0.78904]
[1755066344668,0.01007,119080.0,119070.0,0.79113]
[1755066348290,0.00712,119080.0,119070.0,0.79113]
[1755066351706,0.005,119080.0,119070.0,0.79415]
[1755066357208,0.005,119080.0,119070.0,1.13009]
[1755066359566,0.005,119080.0,119070.0,1.21281325]
[1755066359776,0.005,119080.0,119070.0,1.23586325]
[1755066359977,0.005,119080.0,119070.0,1.26103825]
[1755066368329,0.0025,119080.0,119070.0,1.26103825]
[1755066374598,0.00782,119080.0,119070.0,1.23287825]
[1755066375261,0.00313,119080.0,119070.0,1.23488825]
[1755066377439,0.00313,119080.0,119070.0,1.23794825]
[1755066381328,0.001,119080.0,119070.0,1.23794825]
[1755066385810,0.001,119080.0,119070.0,1.26099825]
[1755066388311,0.001,119080.0,119070.0,1.15635825]
[1755066388997,0.001,119080.0,119070.0,1.32380727]
[1755066389212,0.001,119080.0,119070.0,1.12252727]
[1755066389445,0.001,119080.0,119070.0,1.22252727]
[1755066390506,0.54698156,119090.0,119080.0,0.2]
[1755066390707,0.54698156,119090.0,119080.0,0.85114325]
[1755066390919,0.54698156,119090.0,119080.0,0.85416325]
[1755066391576,0.54698156,119090.0,119080.0,0.87933225]
[1755066392418,0.54698156,119090.0,119080.0,0.88033225]
[1755066393041,0.54798156,119090.0,119080.0,0.88133225]
[1755066394942,0.54798156,119090.0,119080.0,0.90483225]
[1755066395579,0.54798156,119090.0,119080.0,1.21071225]
[1755066400055,0.54798156,119090.0,119080.0,1.10607225]
[1755066405093,0.54798156,119090.0,119080.0,0.90483225]
[1755066405756,0.54798156,119090.0,119080.0,1.21071225]
[1755066410900,0.54798156,119090.0,119080.0,1.08019225]
[1755066411044,0.55312156,119090.0,119080.0,1.07752225]
[1755066415656,0.55312156,119090.0,119080.0,1.18216225]
[1755066417495,0.55312156,119090.0,119080.0,1.05168225]
[1755066417744,0.55312156,119090.0,119080.0,1.18212225]
[1755066419319,0.55312156,119090.0,119080.0,0.899399]
[1755066420418,0.55312156,119090.0,119080.0,0.768959]
[1755066420650,0.55312156,119090.0,119080.0,0.899399]
[1755066424162,0.55312156,119090.0,119080.0,1.099399]
[1755066426307,0.55312156,119090.0,119080.0,1.07423]
[1755066432328,0.55312156,119090.0,119080.0,0.74379]
[1755066432504,0.55312156,119090.0,119080.0,0.77419]
[1755066433390,0.55212156,119090.0,119080.0,0.77219]
[1755066433596,0.55512156,119090.0,119080.0,0.77319]
[1755066433821,0.55612156,119090.0,119080.0,0.77319]
[1755066434000,0.55612156,119090.0,119080.0,0.81319]
[1755066436486,0.55612156,119090.0,119080.0,0.68279]
[1755066436685,0.55612156,119090.0,119080.0,0.81319]
[1755066440428,0.55597041,119090.0,119080.0,0.81319]
[1755066451166,0.55597041,119090.0,119080.0,0.81524]
[1755066456307,0.55597041,119090.0,119080.0,0.81319]
[1755066456524,1.25830485,119090.0,119080.0,0.81319]
[1755066456956,0.55597041,119090.0,119080.0,0.81319]
[1755066457227,0.55597041,119090.0,119080.0,0.81524]
[1755066459684,0.55279041,119090.0,119080.0,0.81524]
[1755066465098,0.55579041,119090.0,119080.0,0.81524]
[1755066470508,0.55279041,119090.0,119080.0,0.81524]
[1755066474270,0.55579041,119090.0,119080.0,0.81524]
[1755066477106,0.62263812,119090.0,119080.0,0.68279]
[1755066477308,0.72281039,119090.0,119080.0,0.64705438]
[1755066477462,0.74799339,119090.0,119080.0,0.77769438]
[1755066477676,1.45032783,119090.0,119080.0,0.77769438]
[1755066477935,0.74799339,119090.0,119080.0,0.77769438]
[1755066478156,1.44932783,119090.0,119080.0,0.77769438]
[1755066478333,0.74699339,119090.0,119080.0,0.77769438]
[1755066478664,0.74999339,119090.0,119080.0,0.77769438]
[1755066478867,1.45232783,119090.0,119080.0,0.77769438]
[1755066479094,0.74699339,119090.0,119080.0,0.77669438]
[1755066479298,1.44932783,119090.0,119080.0,0.77669438]
[1755066480535,1.45432783,119090.0,119080.0,0.77769438]
[1755066480961,0.68514568,119090.0,119080.0,0.77769438]
[1755066481171,1.38748012,119090.0,119080.0,0.77769438]
[1755066481841,0.68514568,119090.0,119080.0,0.77769438]
[1755066482057,1.38748012,119090.0,119080.0,0.77769438]
[1755066483378,0.68514568,119090.0,119080.0,0.77769438]
[1755066483584,1.38748012,119090.0,119080.0,0.77769438]
[1755066485436,0.68514568,119090.0,119080.0,0.77769438]
[1755066485863,1.38748012,119090.0,119080.0,0.77769438]
[1755066486716,1.38748012,119090.0,119080.0,0.64705438]
[1755066486926,1.38748012,119090.0,119080.0,0.77833438]
[1755066487765,2.34960248,119090.0,119080.0,0.64705438]
[1755066488012,2.43828628,119090.0,119080.0,0.041]
[1755066488230,2.43828628,119090.0,119080.0,0.37356]
[1755066488453,2.41449032,119090.0,119080.0,0.37356]
[1755066488661,2.41149032,119090.0,119080.0,0.37356]